[Event "Lilla Elite Hotels Open 2023"]
[Site "Elite Stadshotellet, Kungsgatan 6, Vaxjo, Sweden"]
[Date "2023.02.11"]
[Round "5.1"]
[White "Truskavetska, Solomia"]
[Black "Sandgren, Per-Olov"]
[Result "1-0"]
[TimeControl "15 minutes + 5 seconds per move from move one (Round 1 - 4) / 90 minutes + 30 seconds per move from move one (Round 5 - 8)"]
[WhiteFideId "1744658"]
[BlackFideId "1713884"]
[WhiteElo "1558"]
[BlackElo "1482"]

1. e4 {[%clk 01:30:53]} {[%emt 00:00:06]} e5 {[%clk 01:29:35]} {[%emt
00:01:25]} 2. Nf3 {[%clk 01:31:00]} {[%emt 00:00:23]} Nc6 {[%clk 01:29:37]}
{[%emt 00:00:28]} 3. Bb5 {[%clk 01:30:57]} {[%emt 00:00:33]} a6 {[%clk
01:28:25]} {[%emt 00:01:43]} 4. Ba4 {[%clk 01:31:05]} {[%emt 00:00:21]} Nf6
{[%clk 01:27:45]} {[%emt 00:01:10]} 5. O-O {[%clk 01:30:50]} {[%emt 00:00:44]}
b5 {[%clk 01:27:34]} {[%emt 00:00:42]} 6. Bb3 {[%clk 01:31:07]} {[%emt
00:00:13]} Be7 {[%clk 01:27:33]} {[%emt 00:00:32]} 7. c3 {[%clk 01:29:03]}
{[%emt 00:02:33]} d6 {[%clk 01:27:25]} {[%emt 00:00:37]} 8. h3 {[%clk
01:26:50]} {[%emt 00:02:43]} Na5 {[%clk 01:25:26]} {[%emt 00:02:30]} 9. Bc2
{[%clk 01:24:01]} {[%emt 00:03:20]} c5 {[%clk 01:24:48]} {[%emt 00:01:06]} 10.
d4 {[%clk 01:23:15]} {[%emt 00:01:15]} cxd4 {[%clk 01:22:02]} {[%emt 00:03:17]}
11. cxd4 {[%clk 01:23:06]} {[%emt 00:00:39]} Qc7 {[%clk 01:15:19]} {[%emt
00:07:13]} 12. Nc3 {[%clk 01:18:35]} {[%emt 00:04:58]} exd4 {[%clk 01:05:06]}
{[%emt 00:10:46]} 13. Nxd4 {[%clk 01:18:28]} {[%emt 00:00:36]} O-O {[%clk
01:01:28]} {[%emt 00:04:10]} 14. Bf4 {[%clk 01:08:25]} {[%emt 00:10:32]} Re8
{[%clk 00:55:44]} {[%emt 00:06:14]} 15. Re1 {[%clk 01:01:16]} {[%emt 00:07:39]}
Nc4 {[%clk 00:51:20]} {[%emt 00:04:54]} 16. Nd5 {[%clk 00:53:55]} {[%emt
00:07:52]} Nxd5 {[%clk 00:50:10]} {[%emt 00:01:39]} 17. exd5 {[%clk 00:53:57]}
{[%emt 00:00:30]} Bd7 {[%clk 00:44:08]} {[%emt 00:06:32]} 18. Rc1 {[%clk
00:48:31]} {[%emt 00:05:55]} Qb6 {[%clk 00:31:48]} {[%emt 00:12:49]} 19. Qd3
{[%clk 00:36:42]} {[%emt 00:12:19]} g6 {[%clk 00:31:41]} {[%emt 00:00:37]} 20.
b3 {[%clk 00:35:26]} {[%emt 00:01:46]} Na3 {[%clk 00:23:42]} {[%emt 00:08:25]}
21. Bd1 {[%clk 00:31:45]} {[%emt 00:04:15]} Bf6 {[%clk 00:22:19]} {[%emt
00:01:53]} 22. Rxe8+ {[%clk 00:27:32]} {[%emt 00:04:44]} Rxe8 {[%clk 00:22:32]}
{[%emt 00:00:16]} 23. Be3 {[%clk 00:27:40]} {[%emt 00:00:22]} Qb7 {[%clk
00:14:45]} {[%emt 00:08:18]} 24. Qd2 {[%clk 00:26:04]} {[%emt 00:02:03]} Qxd5
{[%clk 00:14:21]} {[%emt 00:00:56]} 25. Bf3 {[%clk 00:24:12]} {[%emt 00:02:20]}
Qe5 {[%clk 00:13:05]} {[%emt 00:01:46]} 26. Qb4 {[%clk 00:23:48]} {[%emt
00:00:53]} Bg5 {[%clk 00:10:06]} {[%emt 00:03:31]} 27. Bxg5 {[%clk 00:18:44]}
{[%emt 00:05:35]} Qxg5 {[%clk 00:08:46]} {[%emt 00:01:49]} 28. Qxa3 {[%clk
00:18:37]} {[%emt 00:00:37]} Qd2 {[%clk 00:07:34]} {[%emt 00:01:41]} 29. Nc2
{[%clk 00:12:02]} {[%emt 00:07:04]} Bf5 {[%clk 00:06:00]} {[%emt 00:02:07]} 30.
Ne3 {[%clk 00:11:55]} {[%emt 00:00:36]} Rxe3 {[%clk 00:01:09]} {[%emt
00:05:21]} 31. fxe3 {[%clk 00:11:14]} {[%emt 00:01:11]} Qxe3+ {[%clk 00:01:37]}
{[%emt 00:00:02]} 32. Kh1 {[%clk 00:11:20]} {[%emt 00:00:23]} 1-0

[Event "Lilla Elite Hotels Open 2023"]
[Site "Elite Stadshotellet, Kungsgatan 6, Vaxjo, Sweden"]
[Date "2023.02.11"]
[Round "5.2"]
[White "Lyngsjo, Luke"]
[Black "Dingertz, Gustav"]
[Result "1-0"]
[TimeControl "15 minutes + 5 seconds per move from move one (Round 1 - 4) / 90 minutes + 30 seconds per move from move one (Round 5 - 8)"]
[WhiteFideId "1755811"]
[BlackFideId "1767917"]
[WhiteElo "1391"]
[BlackElo "1536"]

1. e4 {[%clk 01:30:54]} {[%emt 00:00:05]} c5 {[%clk 01:30:51]} {[%emt
00:00:09]} 2. Nf3 {[%clk 01:31:15]} {[%emt 00:00:09]} e6 {[%clk 01:31:16]}
{[%emt 00:00:06]} 3. c3 {[%clk 01:31:12]} {[%emt 00:00:32]} d5 {[%clk
01:29:19]} {[%emt 00:02:27]} 4. exd5 {[%clk 01:29:26]} {[%emt 00:02:16]} exd5
{[%clk 01:29:41]} {[%emt 00:00:08]} 5. Bb5+ {[%clk 01:28:44]} {[%emt 00:01:12]}
Nc6 {[%clk 01:23:54]} {[%emt 00:06:17]} 6. d4 {[%clk 01:27:47]} {[%emt
00:01:27]} Nf6 {[%clk 01:17:57]} {[%emt 00:06:27]} 7. O-O {[%clk 01:22:54]}
{[%emt 00:05:22]} Be7 {[%clk 01:12:48]} {[%emt 00:05:40]} 8. Ne5 {[%clk
01:20:06]} {[%emt 00:03:18]} Qc7 {[%clk 01:04:36]} {[%emt 00:08:41]} 9. Re1
{[%clk 01:17:05]} {[%emt 00:03:32]} O-O {[%clk 00:59:24]} {[%emt 00:05:42]} 10.
Bf4 {[%clk 01:01:58]} {[%emt 00:15:36]} Bd6 {[%clk 00:46:03]} {[%emt 00:13:52]}
11. Bxc6 {[%clk 00:53:28]} {[%emt 00:09:00]} bxc6 {[%clk 00:46:28]} {[%emt
00:00:06]} 12. dxc5 {[%clk 00:52:06]} {[%emt 00:01:52]} Bxc5 {[%clk 00:37:28]}
{[%emt 00:09:30]} 13. b4 {[%clk 00:48:53]} {[%emt 00:03:43]} Bd6 {[%clk
00:36:53]} {[%emt 00:01:03]} 14. Nd2 {[%clk 00:46:38]} {[%emt 00:02:47]} Re8
{[%clk 00:35:13]} {[%emt 00:02:50]} 15. Ndf3 {[%clk 00:35:03]} {[%emt
00:12:25]} Nh5 {[%clk 00:23:51]} {[%emt 00:11:52]} 16. Ng6 {[%clk 00:29:19]}
{[%emt 00:06:13]} Rxe1+ {[%clk 00:23:00]} {[%emt 00:01:21]} 17. Qxe1 {[%clk
00:28:17]} {[%emt 00:01:33]} Be6 {[%clk 00:18:13]} {[%emt 00:05:17]} 18. Bxd6
{[%clk 00:28:16]} {[%emt 00:00:31]} Qxd6 {[%clk 00:18:37]} {[%emt 00:00:05]} 19.
Nge5 {[%clk 00:27:59]} {[%emt 00:00:48]} Re8 {[%clk 00:17:59]} {[%emt
00:01:07]} 20. Qd2 {[%clk 00:27:38]} {[%emt 00:00:52]} Bd7 {[%clk 00:16:26]}
{[%emt 00:02:03]} 21. Re1 {[%clk 00:26:02]} {[%emt 00:02:05]} Nf6 {[%clk
00:15:32]} {[%emt 00:01:25]} 22. Qd4 {[%clk 00:24:38]} {[%emt 00:01:54]} Qc7
{[%clk 00:12:48]} {[%emt 00:03:14]} 23. Re3 {[%clk 00:21:33]} {[%emt 00:03:35]}
Bc8 {[%clk 00:11:18]} {[%emt 00:01:59]} 24. Nd3 {[%clk 00:17:29]} {[%emt
00:04:35]} Re4 {[%clk 00:10:08]} {[%emt 00:01:40]} 25. Qc5 {[%clk 00:14:24]}
{[%emt 00:03:36]} Nd7 {[%clk 00:06:53]} {[%emt 00:03:44]} 26. Qa5 {[%clk
00:13:51]} {[%emt 00:01:03]} Qb6 {[%clk 00:06:29]} {[%emt 00:00:54]} 27. Qxb6
{[%clk 00:12:32]} {[%emt 00:01:50]} axb6 {[%clk 00:06:35]} {[%emt 00:00:23]} 28.
Nde5 {[%clk 00:12:27]} {[%emt 00:00:35]} Nxe5 {[%clk 00:05:56]} {[%emt
00:01:10]} 29. Nxe5 {[%clk 00:12:49]} {[%emt 00:00:07]} Rxe3 {[%clk 00:05:36]}
{[%emt 00:00:51]} 30. fxe3 {[%clk 00:13:13]} {[%emt 00:00:05]} Bb7 {[%clk
00:06:00]} {[%emt 00:00:06]} 31. Nd7 {[%clk 00:13:05]} {[%emt 00:00:38]} b5
{[%clk 00:06:19]} {[%emt 00:00:11]} 32. Kf2 {[%clk 00:13:13]} {[%emt 00:00:22]}
f6 {[%clk 00:06:13]} {[%emt 00:00:35]} 33. Ke2 {[%clk 00:12:55]} {[%emt
00:00:49]} Bc8 {[%clk 00:06:07]} {[%emt 00:00:32]} 34. Nb8 {[%clk 00:11:14]}
{[%emt 00:02:15]} Bb7 {[%clk 00:06:15]} {[%emt 00:00:21]} 35. Kd3 {[%clk
00:11:36]} {[%emt 00:00:09]} Kf7 {[%clk 00:06:10]} {[%emt 00:00:34]} 36. Kd4
{[%clk 00:11:55]} {[%emt 00:00:12]} Ke6 {[%clk 00:04:00]} {[%emt 00:02:39]} 37.
Kc5 {[%clk 00:11:51]} {[%emt 00:00:34]} g5 {[%clk 00:02:57]} {[%emt 00:01:32]}
38. Nxc6 {[%clk 00:12:05]} {[%emt 00:00:16]} Bc8 {[%clk 00:02:40]} {[%emt
00:00:47]} 39. Kxb5 {[%clk 00:11:05]} {[%emt 00:01:31]} Kd6 {[%clk 00:02:59]}
{[%emt 00:00:11]} 40. Kb6 {[%clk 00:09:49]} {[%emt 00:01:48]} Bf5 {[%clk
00:02:49]} {[%emt 00:00:38]} 41. a4 {[%clk 00:09:30]} {[%emt 00:00:50]} Be4
{[%clk 00:02:34]} {[%emt 00:00:44]} 42. g3 {[%clk 00:09:02]} {[%emt 00:00:59]}
h5 {[%clk 00:02:46]} {[%emt 00:00:17]} 43. a5 {[%clk 00:09:09]} {[%emt
00:00:25]} f5 {[%clk 00:02:23]} {[%emt 00:00:53]} 44. a6 {[%clk 00:09:13]}
{[%emt 00:00:25]} d4 {[%clk 00:02:47]} {[%emt 00:00:06]} 45. Nxd4 {[%clk
00:09:32]} {[%emt 00:00:11]} Ba8 {[%clk 00:03:10]} {[%emt 00:00:07]} 46. Nxf5
{[%clk 00:09:52]} {[%emt 00:00:10]} Ke5 {[%clk 00:03:02]} {[%emt 00:00:37]} 47.
Nh6 {[%clk 00:08:59]} {[%emt 00:01:25]} 1-0

[Event "Lilla Elite Hotels Open 2023"]
[Site "Elite Stadshotellet, Kungsgatan 6, Vaxjo, Sweden"]
[Date "2023.02.11"]
[Round "6.1"]
[White "Truskavetska, Solomia"]
[Black "Lyngsjo, Luke"]
[Result "0-1"]
[TimeControl "15 minutes + 5 seconds per move from move one (Round 1 - 4) / 90 minutes + 30 seconds per move from move one (Round 5 - 8)"]
[WhiteFideId "1744658"]
[BlackFideId "1755811"]
[WhiteElo "1558"]
[BlackElo "1391"]

1. e4 {[%clk 01:30:57]} {[%emt 00:00:02]} e5 {[%clk 01:30:54]} {[%emt
00:00:06]} 2. Nf3 {[%clk 01:31:21]} {[%emt 00:00:05]} Nf6 {[%clk 01:31:19]}
{[%emt 00:00:05]} 3. Nxe5 {[%clk 01:31:46]} {[%emt 00:00:06]} d6 {[%clk
01:31:45]} {[%emt 00:00:04]} 4. Nf3 {[%clk 01:32:07]} {[%emt 00:00:09]} Nxe4
{[%clk 01:32:03]} {[%emt 00:00:12]} 5. d4 {[%clk 01:32:19]} {[%emt 00:00:18]}
d5 {[%clk 01:32:25]} {[%emt 00:00:07]} 6. Bd3 {[%clk 01:32:38]} {[%emt
00:00:12]} Bf5 {[%clk 01:31:37]} {[%emt 00:01:18]} 7. O-O {[%clk 01:32:35]}
{[%emt 00:00:32]} Bd6 {[%clk 01:31:29]} {[%emt 00:00:38]} 8. Nc3 {[%clk
01:31:22]} {[%emt 00:01:43]} O-O {[%clk 01:24:49]} {[%emt 00:07:10]} 9. Re1
{[%clk 01:28:43]} {[%emt 00:03:10]} Re8 {[%clk 01:24:35]} {[%emt 00:00:44]} 10.
Ng5 {[%clk 01:25:03]} {[%emt 00:04:10]} Nxc3 {[%clk 01:19:12]} {[%emt
00:05:53]} 11. Rxe8+ {[%clk 01:25:00]} {[%emt 00:00:32]} Qxe8 {[%clk 01:19:27]}
{[%emt 00:00:15]} 12. bxc3 {[%clk 01:25:13]} {[%emt 00:00:16]} Bxd3 {[%clk
01:19:24]} {[%emt 00:00:34]} 13. cxd3 {[%clk 01:23:39]} {[%emt 00:02:05]} f6
{[%clk 01:15:12]} {[%emt 00:04:42]} 14. Nf3 {[%clk 01:23:01]} {[%emt 00:01:07]}
Qh5 {[%clk 01:11:19]} {[%emt 00:04:24]} 15. Qb3 {[%clk 01:21:13]} {[%emt
00:02:18]} b6 {[%clk 01:09:03]} {[%emt 00:02:45]} 16. Ba3 {[%clk 01:14:27]}
{[%emt 00:07:17]} Bxa3 {[%clk 01:06:16]} {[%emt 00:03:16]} 17. Qxa3 {[%clk
01:14:31]} {[%emt 00:00:27]} Nc6 {[%clk 01:06:14]} {[%emt 00:00:33]} 18. Qa4
{[%clk 01:14:12]} {[%emt 00:00:48]} Qe8 {[%clk 01:05:28]} {[%emt 00:01:16]} 19.
Qb5 {[%clk 01:05:17]} {[%emt 00:09:24]} Rd8 {[%clk 01:01:15]} {[%emt 00:04:43]}
20. c4 {[%clk 00:59:33]} {[%emt 00:06:14]} Qd7 {[%clk 00:56:45]} {[%emt
00:04:59]} 21. Rc1 {[%clk 00:57:54]} {[%emt 00:02:10]} Ne7 {[%clk 00:50:58]}
{[%emt 00:06:16]} 22. Qb3 {[%clk 00:46:24]} {[%emt 00:12:01]} c6 {[%clk
00:42:11]} {[%emt 00:09:16]} 23. h3 {[%clk 00:36:54]} {[%emt 00:10:01]} Ng6
{[%clk 00:36:44]} {[%emt 00:05:57]} 24. cxd5 {[%emt 00:05:42]} cxd5 {[%clk
00:34:20]} 25. Nd2 {[%clk 00:27:41]} {[%emt 00:07:26]} Nf4 {[%clk 00:32:58]}
{[%emt 00:01:51]} 26. Re1 {[%clk 00:27:00]} {[%emt 00:01:11]} Re8 {[%clk
00:31:29]} {[%emt 00:02:00]} 27. Rxe8+ {[%clk 00:22:47]} {[%emt 00:04:43]} Qxe8
{[%clk 00:31:17]} {[%emt 00:00:42]} 28. g3 {[%clk 00:20:12]} {[%emt 00:03:05]}
Qe1+ {[%clk 00:27:43]} {[%emt 00:04:04]} 29. Nf1 {[%clk 00:19:18]} {[%emt
00:01:24]} Nxh3+ {[%clk 00:27:33]} {[%emt 00:00:39]} 30. Kg2 {[%clk 00:19:09]}
{[%emt 00:00:39]} Qxf2+ {[%clk 00:27:54]} {[%emt 00:00:10]} 31. Kxh3 {[%clk
00:19:27]} {[%emt 00:00:12]} Qxf1+ {[%clk 00:28:18]} {[%emt 00:00:06]} 32. Kh2
{[%clk 00:14:57]} {[%emt 00:05:00]} Qf2+ {[%clk 00:26:24]} {[%emt 00:02:23]} 33.
Kh3 {[%clk 00:15:12]} {[%emt 00:00:14]} Qf5+ {[%clk 00:25:24]} {[%emt
00:01:32]} 34. Kg2 {[%clk 00:14:47]} {[%emt 00:00:53]} Qe6 {[%clk 00:24:41]}
{[%emt 00:01:15]} 35. Qa4 {[%clk 00:10:36]} {[%emt 00:04:39]} a5 {[%clk
00:24:09]} {[%emt 00:01:03]} 36. Qc2 {[%clk 00:10:15]} {[%emt 00:00:51]} Kf7
{[%clk 00:20:38]} {[%emt 00:04:00]} 37. Qc7+ {[%clk 00:08:34]} {[%emt
00:02:12]} Kg6 {[%clk 00:20:35]} {[%emt 00:00:33]} 38. a4 {[%clk 00:08:54]}
{[%emt 00:00:10]} Qe2+ {[%clk 00:20:14]} {[%emt 00:00:51]} 39. Kh3 {[%clk
00:07:10]} {[%emt 00:02:14]} Qf1+ {[%clk 00:19:22]} {[%emt 00:01:23]} 40. Kh4
{[%clk 00:03:00]} {[%emt 00:04:40]} Qf5 {[%clk 00:17:07]} {[%emt 00:02:46]} 41.
g4 {[%clk 00:02:41]} {[%emt 00:00:48]} Qf2+ {[%clk 00:16:44]} {[%emt 00:00:53]}
42. Kh3 {[%clk 00:03:06]} {[%emt 00:00:04]} Qxd4 {[%clk 00:16:55]} {[%emt
00:00:20]} 43. Qd7 {[%clk 00:01:35]} {[%emt 00:02:00]} Qxd3+ {[%clk 00:16:01]}
{[%emt 00:01:24]} 44. Kh4 {[%clk 00:01:39]} {[%emt 00:00:27]} Qe4 {[%clk
00:15:46]} {[%emt 00:00:45]} 45. Kh3 {[%clk 00:00:57]} {[%emt 00:01:12]} d4
{[%clk 00:15:05]} {[%emt 00:01:11]} 46. Qb5 {[%clk 00:00:53]} {[%emt 00:00:31]}
Qe5 {[%clk 00:14:10]} {[%emt 00:01:28]} 47. Qb1+ {[%clk 00:00:34]} {[%emt
00:00:50]} Kg5 {[%clk 00:13:51]} {[%emt 00:00:47]} 48. Qxh7 {[%clk 00:00:34]}
{[%emt 00:00:29]} Qe3+ {[%clk 00:13:34]} {[%emt 00:00:48]} 49. Kh2 {[%clk
00:00:46]} {[%emt 00:00:18]} Qf2+ {[%clk 00:13:42]} {[%emt 00:00:23]} 50. Kh1
{[%clk 00:00:34]} {[%emt 00:00:13]} Qh4+ {[%clk 00:13:59]} {[%emt 00:00:41]}
0-1

[Event "Lilla Elite Hotels Open 2023"]
[Site "Elite Stadshotellet, Kungsgatan 6, Vaxjo, Sweden"]
[Date "2023.02.11"]
[Round "6.2"]
[White "Steffert, Goran"]
[Black "Gunnare, William"]
[Result "0-1"]
[TimeControl "15 minutes + 5 seconds per move from move one (Round 1 - 4) / 90 minutes + 30 seconds per move from move one (Round 5 - 8)"]
[WhiteFideId "1743376"]
[BlackFideId "1774433"]
[WhiteElo "1574"]
[BlackElo "1457"]

1. d4 {[%clk 01:30:56]} {[%emt 00:00:03]} Nf6 {[%clk 01:30:51]} {[%emt
00:00:09]} 2. Bf4 {[%clk 01:31:12]} {[%emt 00:00:15]} e6 {[%clk 01:30:42]}
{[%emt 00:00:39]} 3. Nf3 {[%clk 01:31:14]} {[%emt 00:00:28]} c5 {[%clk
01:30:54]} {[%emt 00:00:19]} 4. e3 {[%clk 01:30:40]} {[%emt 00:01:03]} Qb6
{[%clk 01:31:02]} {[%emt 00:00:22]} 5. Qc1 {[%clk 01:28:53]} {[%emt 00:02:17]}
Nc6 {[%clk 01:30:46]} {[%emt 00:00:46]} 6. c3 {[%clk 01:29:03]} {[%emt
00:00:20]} h6 {[%clk 01:29:27]} {[%emt 00:01:50]} 7. Bd3 {[%clk 01:24:31]}
{[%emt 00:05:01]} Nh5 {[%clk 01:24:32]} {[%emt 00:05:24]} 8. Bg3 {[%clk
01:22:23]} {[%emt 00:02:38]} Nxg3 {[%clk 01:22:17]} {[%emt 00:02:46]} 9. fxg3
{[%clk 01:18:36]} {[%emt 00:04:16]} Be7 {[%clk 01:19:27]} {[%emt 00:03:21]} 10.
Nbd2 {[%clk 01:16:45]} {[%emt 00:02:20]} d5 {[%clk 01:17:52]} {[%emt 00:02:06]}
11. O-O {[%clk 01:10:26]} {[%emt 00:06:49]} O-O {[%clk 01:17:18]} {[%emt
00:01:04]} 12. a3 {[%clk 01:00:02]} {[%emt 00:10:54]} cxd4 {[%clk 01:08:39]}
{[%emt 00:09:09]} 13. cxd4 {[%clk 00:54:34]} {[%emt 00:05:57]} e5 {[%clk
01:05:40]} {[%emt 00:03:31]} 14. Bc2 {[%clk 00:51:02]} {[%emt 00:04:00]} exd4
{[%clk 01:02:23]} {[%emt 00:03:48]} 15. exd4 {[%clk 00:50:28]} {[%emt
00:01:04]} Nxd4 {[%clk 01:02:01]} {[%emt 00:00:52]} 16. Kh1 {[%clk 00:50:54]}
{[%emt 00:00:04]} Nxf3 {[%clk 00:51:34]} {[%emt 00:10:56]} 17. Nxf3 {[%clk
00:49:10]} {[%emt 00:02:14]} Bf6 {[%clk 00:50:11]} {[%emt 00:01:54]} 18. Rb1
{[%clk 00:49:04]} {[%emt 00:00:36]} Be6 {[%clk 00:49:52]} {[%emt 00:00:48]} 19.
Bd3 {[%clk 00:45:16]} {[%emt 00:04:18]} Rac8 {[%clk 00:47:25]} {[%emt
00:02:59]} 20. Qd2 {[%clk 00:43:35]} {[%emt 00:02:08]} Rc7 {[%clk 00:46:10]}
{[%emt 00:01:48]} 21. h4 {[%clk 00:36:28]} {[%emt 00:07:36]} Qd6 {[%clk
00:41:09]} {[%emt 00:05:32]} 22. Kh2 {[%clk 00:32:42]} {[%emt 00:04:15]} Bg4
{[%clk 00:38:14]} {[%emt 00:03:25]} 23. Qf2 {[%clk 00:25:29]} {[%emt 00:07:43]}
Bxf3 {[%clk 00:34:33]} {[%emt 00:04:12]} 24. Qxf3 {[%clk 00:25:36]} {[%emt
00:00:23]} Bxh4 {[%clk 00:33:55]} {[%emt 00:01:07]} 25. Qg4 {[%clk 00:23:31]}
{[%emt 00:02:33]} Bg5 {[%clk 00:32:28]} {[%emt 00:02:00]} 26. Qf5 {[%clk
00:19:52]} {[%emt 00:04:08]} g6 {[%clk 00:27:51]} {[%emt 00:05:09]} 27. Qf3
{[%clk 00:18:47]} {[%emt 00:01:32]} Re8 {[%clk 00:24:08]} {[%emt 00:04:15]} 28.
Bc2 {[%clk 00:15:59]} {[%emt 00:03:17]} Re3 {[%clk 00:20:41]} {[%emt 00:03:57]}
29. Qf2 {[%clk 00:15:31]} {[%emt 00:00:58]} d4 {[%clk 00:19:15]} {[%emt
00:01:57]} 30. Rbe1 {[%clk 00:13:04]} {[%emt 00:02:56]} Bh4 {[%clk 00:17:00]}
{[%emt 00:02:45]} 31. Rxe3 {[%clk 00:11:55]} {[%emt 00:01:40]} dxe3 {[%clk
00:17:07]} {[%emt 00:00:22]} 32. Qxe3 {[%clk 00:10:39]} {[%emt 00:01:46]} Qxg3+
{[%clk 00:16:54]} {[%emt 00:00:44]} 33. Qxg3 {[%clk 00:09:57]} {[%emt
00:01:11]} Bxg3+ {[%clk 00:17:18]} {[%emt 00:00:06]} 34. Kxg3 {[%clk 00:10:20]}
{[%emt 00:00:07]} Rxc2 {[%clk 00:17:39]} {[%emt 00:00:10]} 35. Rb1 {[%clk
00:10:07]} {[%emt 00:00:42]} Kg7 {[%clk 00:17:46]} {[%emt 00:00:24]} 0-1

[Event "Lilla Elite Hotels Open 2023"]
[Site "Elite Stadshotellet, Kungsgatan 6, Vaxjo, Sweden"]
[Date "2023.02.12"]
[Round "7.1"]
[White "Lyngsjo, Luke"]
[Black "Mendys, Tommy"]
[Result "0-1"]
[TimeControl "15 minutes + 5 seconds per move from move one (Round 1 - 4) / 90 minutes + 30 seconds per move from move one (Round 5 - 8)"]
[WhiteFideId "1755811"]
[BlackFideId "1762869"]
[WhiteElo "1391"]
[BlackElo "1563"]

1. e4 {[%clk 01:30:56]} {[%emt 00:00:04]} e5 {[%clk 01:30:55]} {[%emt
00:00:05]} 2. Nf3 {[%clk 01:31:14]} {[%emt 00:00:11]} Nc6 {[%clk 01:31:20]}
{[%emt 00:00:05]} 3. Bc4 {[%clk 01:31:37]} {[%emt 00:00:07]} Nf6 {[%clk
01:31:32]} {[%emt 00:00:19]} 4. Ng5 {[%clk 01:31:51]} {[%emt 00:00:16]} d5
{[%clk 01:31:48]} {[%emt 00:00:14]} 5. exd5 {[%clk 01:32:12]} {[%emt 00:00:09]}
Na5 {[%clk 01:32:12]} {[%emt 00:00:05]} 6. Bb5+ {[%clk 01:32:16]} {[%emt
00:00:27]} c6 {[%clk 01:32:30]} {[%emt 00:00:12]} 7. dxc6 {[%clk 01:32:39]}
{[%emt 00:00:07]} bxc6 {[%clk 01:32:56]} {[%emt 00:00:05]} 8. Be2 {[%clk
01:32:28]} {[%emt 00:00:39]} h6 {[%clk 01:33:00]} {[%emt 00:00:27]} 9. Nf3
{[%clk 01:31:31]} {[%emt 00:01:27]} e4 {[%clk 01:32:31]} {[%emt 00:00:58]} 10.
Ne5 {[%clk 01:27:42]} {[%emt 00:04:19]} Qd4 {[%clk 01:31:02]} {[%emt 00:01:59]}
11. f4 {[%clk 01:27:39]} {[%emt 00:00:34]} Bc5 {[%clk 01:30:52]} {[%emt
00:00:39]} 12. Rf1 {[%clk 01:21:54]} {[%emt 00:06:15]} Bb6 {[%clk 01:26:37]}
{[%emt 00:04:45]} 13. c3 {[%clk 01:15:58]} {[%emt 00:06:28]} Qd6 {[%clk
01:26:47]} {[%emt 00:00:19]} 14. b4 {[%clk 01:03:15]} {[%emt 00:13:14]} Nb7
{[%clk 01:27:06]} {[%emt 00:00:11]} 15. Na3 {[%clk 01:02:35]} {[%emt 00:01:10]}
Nd5 {[%clk 01:19:19]} {[%emt 00:08:17]} 16. Nac4 {[%clk 00:56:39]} {[%emt
00:06:25]} Qf6 {[%clk 01:16:47]} {[%emt 00:03:02]} 17. Nxb6 {[%clk 00:54:08]}
{[%emt 00:03:02]} axb6 {[%clk 01:07:10]} {[%emt 00:10:08]} 18. g3 {[%clk
00:50:07]} {[%emt 00:04:30]} O-O {[%clk 01:03:23]} {[%emt 00:04:14]} 19. Bc4
{[%clk 00:47:14]} {[%emt 00:03:24]} Nd6 {[%clk 00:56:08]} {[%emt 00:07:46]} 20.
Qe2 {[%clk 00:40:05]} {[%emt 00:07:38]} Nxc4 {[%clk 00:50:23]} {[%emt
00:06:17]} 21. Qxc4 {[%clk 00:38:16]} {[%emt 00:02:18]} Ba6 {[%clk 00:50:15]}
{[%emt 00:00:39]} 22. Qb3 {[%clk 00:30:41]} {[%emt 00:08:05]} Bxf1 {[%clk
00:50:07]} {[%emt 00:00:38]} 23. Nd7 {[%clk 00:29:58]} {[%emt 00:01:13]} Qf5
{[%clk 00:48:26]} {[%emt 00:02:10]} 24. Nxf8 {[%clk 00:25:45]} {[%emt
00:04:44]} Bd3 {[%clk 00:48:40]} {[%emt 00:00:15]} 25. c4 {[%clk 00:25:25]}
{[%emt 00:00:50]} Qh3 {[%clk 00:48:22]} {[%emt 00:00:48]} 26. Qxd3 {[%clk
00:23:40]} {[%emt 00:02:16]} exd3 {[%clk 00:48:35]} {[%emt 00:00:16]} 27. Bb2
{[%clk 00:23:07]} {[%emt 00:01:04]} Qg2 {[%clk 00:48:18]} {[%emt 00:00:47]} 0-1